bitfinex-derivatives/quotes_SOLF0:USTF0_20250818
["timestamp","ask_amount","ask_price","bid_price","bid_amount"]
[1755507399813,7.23390058,181.01,180.91,3.14]
[1755507400011,3.13,181.0,180.91,3.14]
[1755507403826,3.13,181.0,180.92,3.14]
[1755507404626,3.13,180.98,180.86,3.14]
[1755507404928,3.13,180.98,180.88,3.14]
[1755507405125,3.13,180.98,180.89,5.525]
[1755507405333,3.13,180.98,180.9,3.14]
[1755507410329,4.11377508,180.97,180.9,3.14]
[1755507410635,3.13,180.99,180.9,3.14]
[1755507410832,3.13,180.97,180.9,3.14]
[1755507413735,3.13,180.97,180.88,5.5252]
[1755507414034,3.13,180.97,180.89,2.96]
[1755507414234,4.11968233,180.96,180.87,2.96]
[1755507414442,2.97,180.94,180.87,2.96]
[1755507418840,2.97,180.94,180.87,5.5255]
[1755507419042,2.97,180.94,180.88,2.96]
[1755507419338,2.97,180.94,180.88,8.4853]
[1755507419538,2.97,180.94,180.89,2.96]
[1755507419937,2.97,180.97,180.89,5.525]
[1755507420238,2.97,180.95,180.9,2.96]
[1755507421436,2.97,180.95,180.91,2.96]
[1755507422134,2.97,180.95,180.89,2.96]
[1755507425440,4.13032101,180.94,180.87,2.96]
[1755507425641,2.97,180.92,180.87,2.96]
[1755507425837,2.97,180.92,180.88,2.96]
[1755507426238,2.97,180.92,180.89,2.96]
[1755507426632,19.56,180.96,180.86,2.96]
[1755507426939,2.97,180.94,180.86,2.96]
[1755507427132,4.1311225,180.93,180.86,2.96]
[1755507427332,2.97,180.92,180.86,2.96]
[1755507436846,2.97,180.92,180.86,5.526]
[1755507437043,2.97,180.92,180.87,2.96]
[1755507438252,2.97,180.92,180.86,5.526]
[1755507438451,2.97,180.92,180.87,2.96]
[1755507441454,2.97,180.92,180.84,4.57286961]
[1755507441655,2.97,180.92,180.86,2.96]
[1755507445765,0.03789608,180.91,180.86,2.96]
[1755507445967,3.05,180.9,180.86,2.96]
[1755507447868,3.05,180.9,180.87,3.09]
[1755507448069,0.03789608,180.91,180.87,3.09]
[1755507448070,3.08789608,180.91,180.87,3.09]
[1755507448466,0.03789608,180.91,180.87,3.09]
[1755507448765,3.08789608,180.91,180.88,3.09]
[1755507448970,0.03789608,180.91,180.89,3.09]
[1755507449165,0.03789608,180.91,180.9,5.5247]
[1755507449366,3.05,180.96,180.9,4.57286961]
[1755507449571,4.14119082,180.95,180.91,3.09]
[1755507449775,3.05,180.93,180.88,3.09]
[1755507450072,3.05,180.92,180.87,4.57286961]
[1755507450275,158.48286961,181.0,180.87,4.57286961]
[1755507450572,3.05,180.91,180.89,3.09]
[1755507451161,3.05,180.91,180.9,3.09]
[1755507454569,3.05,180.91,180.88,3.09]
[1755507454773,3.05,180.91,180.86,3.09]
[1755507455076,3.05,180.91,180.84,4.57286961]
[1755507455570,0.03603605,180.92,180.86,3.09]
[1755507455773,3.05,180.9,180.86,3.09]
[1755507456165,3.05,180.9,180.88,3.09]
[1755507456569,3.05,180.9,180.89,3.09]
[1755507456972,3.05,180.9,180.87,3.09]
[1755507457177,3.05,180.9,180.88,3.09]
[1755507457378,0.03603605,180.92,180.88,3.09]
[1755507457576,0.03603605,180.92,180.9,5.5245]
[1755507457772,0.03603605,180.92,180.91,3.09]
[1755507458174,0.03603605,180.92,180.91,8.6144]
[1755507458673,0.03603605,180.92,180.91,3.09]
[1755507458873,3.08603605,180.92,180.91,3.09]
[1755507460476,3.08603605,180.92,180.89,5.525]
[1755507460778,3.05,180.91,180.9,3.09]
[1755507461486,0.03603605,180.92,180.9,8.6147]
[1755507461786,0.03603605,180.92,180.91,3.09]
[1755507462170,0.03603605,180.92,180.91,8.6144]
[1755507462582,3.08603605,180.92,180.91,3.09]
[1755507463281,0.03603605,180.92,180.91,3.09]
[1755507463582,0.03603605,180.92,180.91,8.6144]
[1755507463781,0.03603605,180.92,180.91,3.09]
[1755507464789,3.08603605,180.92,180.91,3.09]
[1755507466184,0.03603605,180.92,180.91,8.6144]
[1755507466386,3.05,181.01,180.91,3.65]
[1755507466582,4.13144507,181.0,180.94,4.57286961]
[1755507466883,3.05,180.98,180.96,3.09]
[1755507467084,3.05,180.98,180.94,13.18616961]
[1755507467778,3.05,180.98,180.95,3.09]
[1755507468188,3.05,180.98,180.96,3.09]
[1755507469180,3.05,180.98,180.94,3.13254087]
[1755507469385,3.05,180.98,180.94,0.04254087]
[1755507472485,2.9,180.98,180.94,0.04254087]
[1755507472686,2.9,180.96,180.94,0.04254087]
[1755507476688,2.9,180.95,180.94,0.04254087]
[1755507476886,2.9,180.95,180.94,3.04254087]
[1755507477990,2.9,180.95,180.94,0.04254087]
[1755507480091,2.9,180.95,180.94,3.04254087]
[1755507480489,2.9,180.95,180.94,0.04254087]
[1755507481793,2.9,180.95,180.94,3.04254087]
[1755507481997,137.18,181.01,180.94,3.04254087]
[1755507482288,2.9,180.99,180.94,3.04254087]
[1755507482888,2.9,180.98,180.94,3.04254087]
[1755507483393,2.9,181.03,180.94,0.04254087]
[1755507483592,2.9,181.0,180.94,0.04254087]
[1755507483795,2.9,180.98,180.94,0.04254087]
[1755507483992,2.9,180.96,180.94,0.04254087]
[1755507484988,4.09086879,180.95,180.94,0.04254087]
[1755507485296,2.9,180.94,180.88,3.0]
[1755507485700,2.9,180.94,180.87,5.5257]
[1755507486000,2.9,180.94,180.87,8.5257]
[1755507486399,2.9,180.94,180.87,3.0]
[1755507488299,2.9,180.92,180.86,5.5258]
[1755507488602,2.9,180.92,180.86,8.5258]
[1755507491706,2.9,180.92,180.86,5.5258]
[1755507491905,2.9,180.92,180.86,3.0]
[1755507496407,2.9,180.92,180.86,5.5257]
[1755507496610,2.9,180.92,180.87,3.0]
[1755507497713,2.9,180.92,180.88,3.0]
[1755507498002,2.9,180.92,180.83,7.57286961]
[1755507498406,2.9,180.92,180.84,3.0]
[1755507499103,2.9,180.9,180.82,5.5271]
[1755507499313,2.9,180.9,180.82,3.0]
[1755507500217,2.9,180.9,180.83,3.0]
[1755507507817,2.9,180.9,180.81,4.57286961]
[1755507508217,4.08501992,180.89,180.8,3.1]
[1755507508522,3.16,180.87,180.8,3.1]
[1755507509823,3.16,180.87,180.79,3.1]
[1755507510221,3.16,180.87,180.78,4.57286961]
[1755507510421,3.16,180.87,180.78,3.1]
[1755507511220,19.75,180.87,180.76,3.1]
[1755507511425,3.16,180.85,180.76,3.1]
[1755507513416,3.16,180.85,180.66,137.18]
[1755507513624,0.03760576,180.82,180.73,3.1]
[1755507513826,3.16,180.81,180.73,3.1]
[1755507516423,3.16,180.81,180.75,3.1]
[1755507516621,0.03569982,180.79,180.75,3.1]
[1755507516823,3.19569982,180.79,180.75,3.1]
[1755507517226,3.16,180.78,180.75,3.1]
[1755507517925,3.16,180.78,180.73,3.1]
[1755507518826,3.16,180.78,180.73,5.5297]
[1755507519022,3.16,180.78,180.74,3.1]
[1755507519229,3.16,180.77,180.74,3.1]
[1755507520329,3.19569982,180.79,180.74,8.6296]
[1755507520531,3.19569982,180.79,180.66,137.18]
[1755507520532,0.03569982,180.79,180.76,3.1]
[1755507520725,3.16,180.82,180.78,7.67286961]
[1755507520930,16.59,180.9,180.79,3.1]
[1755507521125,3.16,180.8,180.79,3.1]
[1755507523632,3.16,180.9,180.79,3.1]
[1755507524430,3.16,180.9,180.83,0.0376014]
[1755507525531,4.07389429,180.89,180.83,0.0376014]
[1755507525731,3.16,180.88,180.83,0.0376014]
[1755507527737,3.16,180.88,180.83,3.1376014]
[1755507528138,3.16,180.87,180.83,3.1376014]
[1755507528332,3.16,180.93,180.83,3.1376014]
[1755507528638,3.16,180.91,180.83,3.1]
[1755507529038,3.16,180.91,180.86,0.04123624]
[1755507529337,3.16,180.89,180.86,0.04123624]
[1755507532642,4.0821846,180.88,180.86,0.04123624]
[1755507532844,2.97,180.87,180.86,0.04123624]
[1755507536440,2.97,180.89,180.86,3.09123624]
[1755507536641,2.97,180.89,180.86,0.04123624]
[1755507539342,4.08577223,180.88,180.86,0.04123624]
[1755507539542,2.97,180.87,180.86,0.04123624]
[1755507541446,7.07170812,180.87,180.86,0.04123624]
[1755507542243,2.97,180.86,180.61,153.7002]
[1755507542446,2.97,180.86,180.75,4.57286961]
[1755507542648,2.97,180.86,180.76,3.05]
[1755507543140,2.97,180.86,180.77,3.05]
[1755507543536,21.16286961,180.89,180.77,3.05]
[1755507543537,0.0419677,180.83,180.77,3.05]
[1755507543853,3.0119677,180.83,180.77,3.05]
[1755507547849,3.0119677,180.83,180.78,3.05]
[1755507548048,2.97,180.82,180.78,3.05]
[1755507549640,0.0419677,180.83,180.78,5.5283]
[1755507549849,3.0119677,180.83,180.79,3.05]
[1755507550647,0.0419677,180.83,180.78,4.57286961]
[1755507550847,2.97,180.82,180.78,3.05]
[1755507551048,2.97,180.82,180.79,3.05]
[1755507552843,2.97,180.82,180.76,3.05]
[1755507553147,2.97,180.82,180.73,3.05]
[1755507553949,0.03738604,180.79,180.73,3.05]
[1755507554258,2.97,180.78,180.73,3.05]
[1755507554753,2.97,180.78,180.72,4.57286961]
[1755507554754,2.97,180.78,180.74,3.05]
[1755507556558,2.97,180.76,180.7,3.05]
[1755507557458,2.97,180.74,180.7,3.05]
[1755507558357,2.97,180.73,180.7,3.05]
[1755507560355,2.97,180.73,180.62,62.0]
[1755507560356,0.03521922,180.75,180.73,8.5799]
[1755507560550,0.03521922,180.75,180.74,3.05]
[1755507560953,2.97,180.8,180.74,3.05]
[1755507561153,2.97,180.8,180.76,3.05]
[1755507561360,2.97,180.85,180.76,3.05]
[1755507561558,2.97,180.83,180.76,3.05]
[1755507561753,4.1734718,180.82,180.76,3.05]
[1755507561960,2.97,180.8,180.76,3.05]
[1755507562259,2.97,180.8,180.77,0.03732259]
[1755507562559,2.96,180.85,180.78,2.89]
[1755507562752,4.17332205,180.84,180.78,2.89]
[1755507562953,2.96,180.82,180.78,2.89]
[1755507563156,4.17332205,180.81,180.78,2.89]
[1755507563356,2.96,180.79,180.78,2.89]
[1755507563860,19.55,180.86,180.78,2.92894803]
[1755507564057,2.96,180.84,180.78,2.92894803]
[1755507564253,2.96,180.82,180.78,0.03894803]
[1755507564459,2.96,180.84,180.79,2.89]
[1755507564863,382.19705876,180.93,180.79,2.89]
[1755507565062,2.96,180.83,180.79,2.89]
[1755507566052,2.96,180.83,180.79,5.5279]
[1755507566260,2.96,180.83,180.8,2.89]
[1755507566460,382.19705876,180.93,180.8,2.89]
[1755507566660,11.3826927,180.92,180.8,2.89]
[1755507566959,2.96,180.9,180.8,2.89]
[1755507567165,2.96,180.88,180.8,2.89]
[1755507567463,2.96,180.86,180.84,0.0370834]
[1755507568461,7.13519519,180.85,180.84,0.0370834]
[1755507570560,2.96,180.84,180.77,2.89]
[1755507570960,2.96,180.82,180.77,2.89]
[1755507571160,2.96,180.82,180.78,2.89]
[1755507571761,2.96,180.82,180.79,2.89]
[1755507571964,2.96,180.81,180.8,2.89]
[1755507573670,0.03797836,180.82,180.8,2.89]
[1755507575266,2.99797836,180.82,180.78,4.57286961]
[1755507575564,2.99797836,180.82,180.81,2.89]
[1755507576462,2.99797836,180.82,180.79,2.89]
[1755507576663,2.96,180.81,180.8,2.89]
[1755507577864,0.03797836,180.82,180.8,2.89]
[1755507578173,2.96,180.81,180.8,2.89]
[1755507578973,2.96,180.81,180.78,4.57286961]
[1755507579262,2.96,180.81,180.76,2.89]
[1755507582671,2.96,180.81,180.76,8.419]
[1755507582876,2.96,180.81,180.77,2.89]
[1755507583463,2.96,180.81,180.76,5.529]
[1755507583668,2.96,180.81,180.75,12.99216961]
[1755507583973,2.96,180.81,180.75,7.46286961]
[1755507584472,2.96,180.81,180.76,2.89]
[1755507584670,2.96,180.81,180.75,4.57286961]
[1755507584873,2.96,180.81,180.77,2.89]
[1755507585672,2.96,180.81,180.75,7.46286961]
[1755507586978,2.96,180.81,180.75,4.57286961]
[1755507587166,2.96,180.81,180.76,2.89]
[1755507590781,2.96,180.81,180.75,4.57286961]
[1755507591079,0.03797836,180.82,180.78,4.57286961]
[1755507591382,2.99797836,180.82,180.79,2.89]
[1755507591582,2.96,180.82,180.79,2.89]
[1755507591783,3.00251795,180.82,180.79,2.89]
[1755507591985,2.96,180.81,180.78,4.57286961]
[1755507592186,2.96,180.81,180.8,2.89]
[1755507595592,0.04251795,180.82,180.79,2.98]
[1755507595787,2.96251795,180.82,180.79,2.98]
[1755507596992,0.04251795,180.82,180.76,5.5289]
[1755507597290,0.04251795,180.82,180.77,2.98]
[1755507597492,2.92,180.81,180.77,2.98]
[1755507597692,2.92,180.81,180.77,8.5086]
[1755507597993,2.92,180.81,180.78,2.98]
[1755507598191,2.96251795,180.82,180.78,2.98]
[1755507598589,0.04251795,180.82,180.78,2.98]
[1755507598795,2.92,180.8,180.78,2.98]
[1755507598991,0.04251795,180.82,180.78,2.98]
[1755507599191,2.92,180.81,180.78,2.98]
[1755507600198,2.92,180.8,180.78,2.98]
[1755507600398,2.92,180.79,180.78,2.98]
[1755507600795,2.92,180.79,180.76,4.57286961]
[1755507600998,2.92,180.79,180.76,2.98]
[1755507601596,2.92,180.81,180.78,2.98]
[1755507602198,2.92,180.8,180.78,2.98]
[1755507602699,2.92,180.81,180.77,2.98]
[1755507603294,2.92,180.81,180.76,2.98]
[1755507603802,2.92,180.81,180.77,2.98]
[1755507604502,2.92,180.81,180.74,2.98]
[1755507605199,2.92,180.81,180.75,2.98]
[1755507606101,2.92,180.81,180.75,8.5093]
[1755507606302,2.92,180.81,180.76,2.98]
[1755507606999,2.92,180.81,180.76,5.529]
[1755507607304,2.92,180.81,180.78,2.98]
[1755507608202,0.04251795,180.82,180.76,4.57286961]
[1755507608398,2.92,180.81,180.77,2.98]
[1755507609100,2.92,180.81,180.69,62.0]
[1755507609300,2.92,180.81,180.75,2.98]
[1755507609498,2.92,180.79,180.75,2.98]
[1755507613003,2.92,180.79,180.73,7.55286961]
[1755507613210,2.92,180.79,180.72,2.98]
[1755507613406,2.92,180.77,180.72,2.98]
[1755507613804,2.92,180.77,180.7,4.57286961]
[1755507614104,2.92,180.75,180.69,2.98]
[1755507617206,2.92,180.75,180.67,4.57286961]
[1755507617411,2.92,180.75,180.68,2.98]
[1755507627621,2.92,180.75,180.67,3.03]
[1755507629012,2.92,180.75,180.66,3.03]
[1755507629214,2.92,180.75,180.64,4.57286961]
[1755507629420,2.92,180.75,180.65,3.03]
[1755507629821,0.04113544,180.71,180.65,3.03]
[1755507630021,3.06,180.7,180.64,4.57286961]
[1755507630218,3.06,180.7,180.64,7.60286961]
[1755507630723,3.06,180.7,180.66,3.03]
[1755507631123,3.06,180.7,180.67,3.03]
[1755507632027,3.06,180.7,180.62,3.03]
[1755507632828,0.03509135,180.68,180.62,5.5333]
[1755507633030,3.09509135,180.68,180.63,3.03]
[1755507633232,3.06,180.67,180.63,3.03]
[1755507633532,0.03509135,180.68,180.61,4.57286961]
[1755507633730,3.06,180.66,180.61,3.03]
[1755507633930,3.06,180.66,180.62,3.03]
[1755507634135,3.06,180.66,180.6,4.57286961]
[1755507634736,3.06,180.66,180.56,136.8]
[1755507634737,3.06,180.66,180.62,3.03]
[1755507634928,3.06,180.67,180.58,3.03]
[1755507635732,3.06,180.63,180.58,3.03]
[1755507635932,3.06,180.63,180.59,3.03]
[1755507636529,3.06,180.63,180.55,3.03]
[1755507636730,3.09991697,180.63,180.58,3.03]
[1755507637140,3.06,180.63,180.59,3.03]
[1755507637534,0.03625488,180.62,180.6,5.5339]
[1755507637733,0.03625488,180.62,180.61,3.03]
[1755507637934,3.06,180.65,180.57,4.57286961]
[1755507638139,3.06,180.65,180.59,5.534]
[1755507638342,0.04025179,180.63,180.6,3.03]
[1755507639346,3.10025179,180.63,180.6,3.03]
[1755507639651,3.06,180.62,180.61,3.03]
[1755507639845,0.04025179,180.63,180.62,3.03]
[1755507640145,3.10025179,180.63,180.62,3.03]
[1755507640545,0.04025179,180.63,180.6,3.03]
[1755507640741,3.06,180.62,180.57,4.57286961]
[1755507640948,3.06,180.62,180.59,3.03]
[1755507641146,3.06,180.62,180.54,4.57286961]
[1755507641455,3.06,180.62,180.55,3.03]
[1755507642250,0.03985434,180.6,180.56,3.03]
[1755507642556,3.06,180.59,180.56,3.03]
[1755507642849,0.03985434,180.6,180.56,3.03]
[1755507643038,0.03985434,180.6,180.49,62.0]
[1755507643039,0.03985434,180.6,180.58,3.03]
[1755507643244,3.06,180.64,180.58,3.03]
[1755507643444,3.06,180.72,180.61,3.03]
[1755507644553,3.06,180.72,180.65,0.0398179]
[1755507645848,3.06,180.71,180.65,0.0398179]
[1755507646052,16.59,180.71,180.65,0.0398179]
[1755507646346,3.06,180.7,180.65,0.0398179]
[1755507647953,3.06,180.7,180.66,3.03]
[1755507648251,3.06,180.7,180.65,0.0398179]
[1755507649056,3.06,180.7,180.65,3.0698179]
[1755507649254,3.06,180.7,180.65,0.0398179]
[1755507652349,3.17,180.68,180.65,0.0398179]
[1755507653259,4.57286961,180.67,180.65,0.0398179]
[1755507653462,3.17,180.66,180.65,0.0398179]
[1755507657355,3.17,180.66,180.65,1.79e-05]
[1755507658264,8.7021,180.66,180.65,1.79e-05]
[1755507660566,5.5321,180.66,180.65,3.1100179]
[1755507660762,8.7021,180.66,180.65,3.1100179]
[1755507661260,5.5321,180.66,180.65,1.79e-05]
[1755507663657,8.7021,180.66,180.65,1.79e-05]
[1755507663964,5.5321,180.66,180.65,1.79e-05]
[1755507666166,8.7021,180.66,180.65,1.79e-05]
[1755507666562,5.5321,180.66,180.65,1.79e-05]
[1755507667161,8.7021,180.66,180.65,1.79e-05]
[1755507667366,5.5321,180.66,180.65,1.79e-05]
[1755507668865,8.7021,180.66,180.65,1.79e-05]
[1755507669266,5.5321,180.66,180.65,1.79e-05]
[1755507671974,9.65725067,180.66,180.65,1.79e-05]
[1755507675376,14.23012028,180.66,180.65,1.79e-05]
[1755507675877,14.79012028,180.66,180.65,1.79e-05]
[1755507676071,19.35297292,180.66,180.65,1.79e-05]
[1755507676274,13.82087292,180.66,180.55,3.11]
[1755507676477,8.68858373,180.65,180.55,3.11]
[1755507676677,3.17,180.63,180.55,3.11]
[1755507676979,3.17,180.61,180.55,3.11]
[1755507677273,4.13155956,180.6,180.53,3.11]
[1755507677473,4.13155956,180.6,180.43,12.27048417]
[1755507677474,4.12947116,180.59,180.5,3.11]
[1755507677680,3.17,180.58,180.5,3.11]
[1755507678172,4.12824258,180.57,180.5,3.11]
[1755507678374,3.20962137,180.56,180.5,3.11]
[1755507678572,3.20962137,180.56,180.5,5.537]
[1755507678774,3.20962137,180.56,180.51,3.11]
[1755507679076,3.17,180.54,180.52,3.11]
[1755507679278,3.17,180.55,180.51,3.11]
[1755507679475,3.17,180.55,180.47,4.57286961]
[1755507679671,3.17,180.55,180.52,3.11]
[1755507679873,3.21089634,180.55,180.47,10.11056961]
[1755507680079,3.21089634,180.55,180.48,3.11]
[1755507680275,0.04089634,180.55,180.5,4.57286961]
[1755507680580,0.04089634,180.55,180.51,3.11]
[1755507680775,3.17,180.58,180.52,3.11]
[1755507680980,0.03701355,180.55,180.52,3.11]
[1755507681181,5.536,180.54,180.53,3.11]
[1755507682473,8.456,180.54,180.53,3.11]
[1755507682680,5.5364,180.52,180.51,3.08]
[1755507683881,8.4564,180.52,180.51,3.08]
[1755507684077,5.5364,180.52,180.51,3.08]
[1755507684271,8.4564,180.52,180.51,3.08]
[1755507684680,2.92,180.52,180.48,3.08]
[1755507684981,2.92,180.51,180.5,3.08]
[1755507685183,4.57286961,180.59,180.49,3.08]
[1755507685383,2.92,180.5,180.49,3.08]
[1755507685883,5.5372,180.5,180.49,3.08]
[1755507688486,8.4572,180.5,180.49,3.08]
[1755507689577,0.03912243,180.52,180.45,10.11126961]
[1755507689784,2.92,180.51,180.46,3.08]
[1755507690076,2.92,180.51,180.48,3.08]
[1755507690282,0.04089269,180.5,180.48,3.08]
[1755507690683,0.04089269,180.5,180.45,4.57286961]
[1755507690888,0.04089269,180.5,180.49,3.08]
[1755507691287,2.92,180.61,180.49,3.64]
[1755507691582,2.92,180.61,180.54,3.08]
[1755507691986,2.92,180.61,180.52,3.08]
[1755507692189,2.92,180.61,180.5,3.08]
[1755507692391,4.11002843,180.6,180.5,3.08]
[1755507692687,4.11002843,180.6,180.48,4.57286961]
[1755507692688,2.92,180.59,180.55,0.04096475]
[1755507694889,16.59,180.63,180.56,3.08]
[1755507695104,2.92,180.62,180.56,3.08]
[1755507696005,2.92,180.62,180.57,3.08]
[1755507696210,137.44,180.66,180.55,0.04096475]
[1755507696396,2.92,180.63,180.56,3.08]
[1755507697497,2.92,180.63,180.55,0.04096475]
[1755507697702,8.4552,180.56,180.55,0.04096475]
[1755507699899,8.4552,180.56,180.55,3.12096475]
[1755507700107,5.5352,180.56,180.55,3.12096475]
[1755507700609,8.4552,180.56,180.55,3.12096475]
[1755507700902,5.5349,180.57,180.56,3.08]
[1755507701607,5.5352,180.56,180.55,3.12096475]
[1755507701906,8.4552,180.56,180.55,3.12096475]
[1755507702507,5.5352,180.56,180.55,3.12096475]
[1755507702901,5.5349,180.57,180.55,3.12096475]
[1755507703104,2.92,180.59,180.56,3.08]
[1755507703304,2.92,180.6,180.56,3.08]
[1755507703898,5.5348,180.57,180.56,3.08]
[1755507704105,8.4548,180.57,180.56,3.08]
[1755507704409,8.4552,180.56,180.55,3.12096475]
[1755507704613,8.4552,180.56,180.55,0.04096475]
[1755507705307,8.4552,180.56,180.55,6.475e-05]
[1755507705707,7.58682703,180.56,180.43,3.08]
[1755507705912,4.57286961,180.54,180.43,3.08]
[1755507706207,5.5386,180.45,180.43,3.08]
[1755507706403,5.5386,180.45,180.42,4.57286961]
[1755507706600,5.5386,180.45,180.44,3.08]
[1755507706796,11.0702,180.57,180.45,3.08]
[1755507706797,2.92,180.5,180.45,3.08]
[1755507707197,2.92,180.49,180.45,3.08]
[1755507707398,5.5378,180.48,180.45,3.08]
[1755507707810,5.5378,180.48,180.45,5.5383]
[1755507708009,5.57686289,180.49,180.46,3.08]
[1755507708209,5.57686289,180.49,180.45,4.57286961]
[1755507708210,0.03956289,180.49,180.45,4.57286961]
[1755507708410,2.95956289,180.49,180.45,4.57286961]
[1755507708604,2.95956289,180.49,180.47,3.08]
[1755507708907,0.03956289,180.49,180.46,3.08]
[1755507709412,5.5378,180.48,180.47,3.08]
[1755507709611,8.4578,180.48,180.47,3.08]
[1755507710109,5.5378,180.48,180.47,3.08]
[1755507710610,5.57696289,180.49,180.48,3.08]
[1755507711418,8.49696289,180.49,180.48,3.08]
[1755507711719,8.49696289,180.49,180.45,10.11126961]
[1755507711904,8.4577,180.48,180.46,3.08]
[1755507712109,8.4577,180.48,180.47,2.94]
[1755507712305,5.5377,180.48,180.47,2.94]
[1755507713615,5.57696289,180.49,180.46,2.94]
[1755507713914,5.57696289,180.49,180.46,8.478]
[1755507714115,5.57696289,180.49,180.48,2.94]
[1755507715709,8.67696289,180.49,180.48,2.94]
[1755507716914,3.13956289,180.49,180.46,2.94]
[1755507717115,3.1,180.48,180.45,2.94]
[1755507717311,3.1,180.47,180.45,2.94]
[1755507717807,0.03956289,180.49,180.45,2.94]
[1755507718006,0.03956289,180.49,180.44,10.11146961]
[1755507718210,3.1,180.48,180.45,2.94]
[1755507718816,0.03956289,180.49,180.44,2.94]
[1755507719015,0.03956289,180.49,180.46,2.94]
[1755507719313,0.03956289,180.49,180.47,5.5377]
[1755507719514,0.03956289,180.49,180.48,2.94]
[1755507720118,3.13956289,180.49,180.48,2.94]
[1755507720319,3.1,180.53,180.48,4.57286961]
[1755507720515,3.1,180.62,180.51,4.57286961]
[1755507720717,3.1,180.6,180.52,2.94]
[1755507720911,3.1,180.6,180.53,2.94]
[1755507721423,3.1,180.6,180.54,5.5357]
[1755507721715,3.1,180.6,180.55,0.03504732]
[1755507724220,3.1,180.6,180.55,2.97504732]
[1755507724622,3.1,180.6,180.55,0.03504732]
[1755507724824,5.5351,180.56,180.55,0.03504732]
[1755507725014,8.6351,180.56,180.55,0.03504732]
[1755507725212,3.1,180.59,180.55,0.03504732]
[1755507725411,3.1,180.62,180.56,2.94]
[1755507725616,3.1,180.56,180.55,2.97504732]
[1755507726021,8.6352,180.56,180.55,0.03504732]
[1755507728113,8.6352,180.56,180.55,2.97504732]
[1755507728821,3.1,180.56,180.55,2.97504732]
[1755507729925,3.1,180.56,180.55,0.03504732]
[1755507730624,3.1,180.56,180.55,2.97504732]
[1755507731225,5.535,180.57,180.55,2.97504732]
[1755507731421,8.635,180.57,180.56,2.94]
[1755507732523,8.635,180.57,180.55,0.03504732]
[1755507732725,3.1,180.56,180.55,2.97504732]
[1755507734025,5.5346,180.58,180.55,2.97504732]
[1755507734229,5.5346,180.58,180.56,2.94]
[1755507734524,3.1,180.57,180.56,2.94]
[1755507735025,3.1,180.57,180.55,0.03504732]
[1755507735326,3.1,180.56,180.55,2.97504732]
[1755507735526,3.1,180.56,180.55,0.03504732]
[1755507736427,3.1,180.56,180.55,2.97504732]
[1755507737925,3.1,180.56,180.55,0.03504732]
[1755507738521,8.6352,180.56,180.55,0.03504732]
[1755507739129,3.1,180.56,180.55,0.03504732]
[1755507740219,3.1,180.56,180.55,2.97504732]
[1755507740527,3.1,180.56,180.55,0.03504732]